lending/lending_fUSD_20250102
["ID","MTS","AMOUNT","RATE_DAILY","PERIOD"]
[347462066,1735836640834,-398.80548816,9.77e-05,2]
[347462068,1735836640845,-4709.3,9.77e-05,2]
[347462070,1735836640857,-3448.70284767,9.77e-05,2]
[347462072,1735836640868,-1452.21272233,9.77e-05,2]
[347462077,1735836640909,-390.242268,9.77e-05,2]
[347462080,1735836640920,-3238.09951093,9.77e-05,2]
[347462082,1735836640931,-352.87584249,9.77e-05,2]
[347462084,1735836640942,-525.755001,9.77e-05,2]
[347462088,1735836640966,-1107.43315,9.77e-05,2]
[347462090,1735836640977,-3322.214,9.77e-05,2]
[347462092,1735836640988,-17428.54156111,9.77e-05,2]
[347462094,1735836641000,-500.0136496,9.77e-05,2]
[347462097,1735836641011,-680.90665295,9.77e-05,2]
[347462099,1735836641023,-610.35,9.77e-05,2]
[347462101,1735836641034,-257181.50063969,9.77e-05,2]
[347462103,1735836641044,-2425.69185267,9.77e-05,2]
[347462322,1735836643155,-4651.81112628,9.77e-05,2]
[347462347,1735836643317,-987.01,9.77e-05,2]
[347462365,1735836643481,-60954.3969806,9.77e-05,2]
[347462456,1735836646284,-2414.51312751,9.77e-05,2]
[347462457,1735836646312,-19544.80321877,9.77e-05,2]
[347462458,1735836646346,-4918.90264871,9.77e-05,2]
[347462459,1735836646359,-23863.5968064,9.77e-05,2]
[347462460,1735836646371,-4358.7262,9.77e-05,2]
[347462488,1735836648384,250.0,9.219e-05,2]
[347462491,1735836703345,2500.0,9.58e-05,2]
[347462496,1735836757690,172.75,9.219e-05,2]
[347462497,1735836849310,1250.19,9.192e-05,2]
[347462500,1735836915584,151.845,9.28e-05,2]
[347462501,1735836965235,1000.0,9.116e-05,2]
[347462502,1735836978230,900.0,8.22e-05,2]
[347462503,1735836978283,500.0,8.22e-05,2]
[347462504,1735836979964,2300.0,8.22e-05,2]
[347462505,1735836980380,900.0,9.59e-05,2]
[347462506,1735836980928,2300.0,9.59e-05,2]
[347462507,1735836993623,1163.24,9.192e-05,2]
[347462508,1735836998521,46064.8545,9.569e-05,2]
[347462509,1735837006326,1735.16,9.11e-05,2]
[347462510,1735837007101,250.0,9.11e-05,2]
[347462511,1735837110693,1348.378,9.575e-05,2]
[347462512,1735837123489,1110.21,8.219e-05,2]
[347462513,1735837197448,200.0,9.096e-05,2]
[347462514,1735837201967,6149820.55134076,0.00023,120]
[347462515,1735837358343,1852.42,9.093e-05,2]
[347462516,1735837501380,250.0,9.052e-05,2]
[347462517,1735837509386,150.0,8.778e-05,2]
[347462518,1735837545864,151.648,9.28e-05,2]
[347462519,1735837586093,23900.0,9.07e-05,2]
[347462520,1735837596800,250.0,9.088e-05,2]
[347462521,1735837625638,642.24,9.053e-05,2]
[347462538,1735837832479,-150.0,9.666e-05,2]
[347462539,1735837832489,-102525.47642931,9.666e-05,2]
[347462540,1735837832501,-520.41,9.666e-05,2]
[347462547,1735837833106,-1830.0,9.666e-05,2]
[347462548,1735837833137,-2042.9495505,9.666e-05,2]
[347462549,1735837833149,-1378.66431652,9.666e-05,2]
[347462550,1735837833160,-506.6,9.666e-05,2]
[347462551,1735837833199,-2525.0000005,9.666e-05,2]
[347462552,1735837833211,-9998.0,9.666e-05,2]
[347462553,1735837833222,-2307.05715261,9.666e-05,2]
[347462554,1735837833253,-334.67300778,9.666e-05,2]
[347462555,1735837833266,-1807.18108772,9.666e-05,2]
[347462556,1735837833280,-1305.0,9.666e-05,2]
[347462557,1735837833291,-460.978,9.666e-05,2]
[347462562,1735837838411,-523.24999839,9.666e-05,2]
[347462563,1735837838422,-28409.42531472,9.666e-05,2]
[347462564,1735837838468,-8108.68791628,9.666e-05,2]
[347462565,1735837838491,-1462.07663089,9.666e-05,2]
[347462566,1735837838572,-308.57089545,9.666e-05,2]
[347462715,1735837840197,-6069.96245532,9.666e-05,2]
[347462728,1735837840309,-500.0,9.666e-05,2]
[347462855,1735837841552,-17439.71609368,9.666e-05,2]
[347462862,1735837841608,-392.94,9.666e-05,2]
[347462873,1735837841705,-5552.71966165,9.666e-05,2]
[347463046,1735837843353,-26024.87236068,9.666e-05,2]
[347463048,1735837843363,-4571.3518,9.67e-05,2]
[347463050,1735837843371,-335.0,9.68e-05,2]
[347463052,1735837843380,-500.0,9.743e-05,2]
[347463054,1735837843390,-500.0,9.743e-05,2]
[347463056,1735837843399,-14615.14508924,9.743e-05,2]
[347463058,1735837843408,-279.64515615,9.743e-05,2]
[347463060,1735837843417,-279.64515614,9.757e-05,2]
[347463062,1735837843426,-500.0,9.769e-05,2]
[347463064,1735837843435,-19901.76131436,9.769e-05,2]
[347463103,1735837843789,-414549.30166133,9.769e-05,2]
[347463105,1735837843799,-1190688.48204361,9.77e-05,2]
[347463108,1735837843811,-687.94347,9.77e-05,2]
[347463110,1735837843822,-4584.2756899,9.77e-05,2]
[347463112,1735837843832,-1254.32754042,9.77e-05,2]
[347463116,1735837843856,-2239.10260521,9.77e-05,2]
[347463118,1735837843867,-76897.31090817,9.77e-05,2]
[347463120,1735837843877,-17767.93427304,9.77e-05,2]
[347463122,1735837843889,-34153.92237292,9.77e-05,2]
[347463124,1735837843900,-1109.5628542,9.77e-05,2]
[347463171,1735837844331,-146905.98328647,9.77e-05,2]
[347463174,1735837844342,-6100.25521007,9.77e-05,2]
[347463176,1735837844353,-2697.17970122,9.77e-05,2]
[347463190,1735837844477,-8400.0000004,9.77e-05,2]
[347463192,1735837844488,-981.88206686,9.77e-05,2]
[347463194,1735837844500,-37885.20000002,9.77e-05,2]
[347463379,1735837846293,-27045.5275716,9.77e-05,2]
[347463382,1735837846305,-3658.55757206,9.77e-05,2]
[347463384,1735837846317,-9753.09489998,9.77e-05,2]
[347463388,1735837846351,-91063.46565369,9.77e-05,2]
[347463391,1735837846362,-53634.30003778,9.77e-05,2]
[347463393,1735837846373,-3595.97560538,9.77e-05,2]
[347463395,1735837846384,-1526.43607782,9.77e-05,2]
[347463397,1735837846395,-4020.00006389,9.77e-05,2]
[347463399,1735837846407,-2291.851,9.77e-05,2]
[347463402,1735837846418,-1056.34317,9.77e-05,2]
[347463404,1735837846429,-466.43999997,9.77e-05,2]
[347463406,1735837846442,-12610.86382,9.77e-05,2]
[347463410,1735837846469,-1747.8,9.77e-05,2]
[347463412,1735837846480,-594339.05101655,9.77e-05,2]
[347463414,1735837846491,-282.829833,9.77e-05,2]
[347463417,1735837846502,-256.09224003,9.77e-05,2]
[347463419,1735837846512,-1394.25,9.77e-05,2]
[347463466,1735837846883,-806.10305064,9.77e-05,2]
[347463470,1735837846895,-545.54747246,9.77e-05,2]
[347463474,1735837846906,-1920.0,9.77e-05,2]
[347463481,1735837846961,-2283.40303764,9.77e-05,2]
[347463483,1735837846972,-46667.11958579,9.77e-05,2]
[347463486,1735837846982,-3946.738361,9.77e-05,2]
[347463490,1735837847011,-3222.3,9.77e-05,2]
[347463491,1735837847022,-375.6799385,9.77e-05,2]
[347463494,1735837847050,-263.64872825,9.77e-05,2]
[347464301,1735837908295,373.6076,9.566e-05,2]
[347464302,1735837916308,250.0,9.1e-05,2]
[347464303,1735837919047,1000.0,9.027e-05,2]
[347464304,1735837951445,46425.4465,9.566e-05,2]
[347464305,1735837976759,200.0,9.077e-05,2]
[347464306,1735838028310,-5000.0,9.67e-05,2]
[347464307,1735838108154,5000.0,9.67e-05,2]
[347464308,1735838108180,640.4216,9.67e-05,2]
[347464309,1735838142187,4359.5784,9.67e-05,2]
[347464310,1735838156790,870.8,9.157e-05,2]
[347464311,1735838162007,1237.54661739,9.151e-05,2]
[347464312,1735838162033,291.09338261,9.151e-05,2]
[347464313,1735838169707,151.561,9.28e-05,2]
[347464314,1735838190522,15407.0,9.576e-05,2]
[347464315,1735838235109,250000.0,9e-05,2]
[347464316,1735838254527,363.04,9.009e-05,2]
[347464317,1735838301662,1076.11,8.219e-05,2]
[347464318,1735838310703,1082.197,9.575e-05,2]
[347464319,1735838321222,248610.81024764,9e-05,3]
[347464320,1735838321247,22940.86567362,9e-05,3]
[347464321,1735838353346,200.0,9.145e-05,2]
[347464322,1735838365078,250.0,9.167e-05,2]
[347464323,1735838621852,500.0,9.568e-05,2]
[347464324,1735838699377,250.0,9.104e-05,2]
[347464326,1735838744988,321.12,9.123e-05,2]
[347464327,1735838782110,227.24,9.104e-05,2]
[347464328,1735838807291,1000.0,9.112e-05,2]
[347464331,1735838849439,151.354,9.28e-05,2]
[347464348,1735838990001,172.75,9.09e-05,2]
[347464362,1735839031491,-300.0,9.669e-05,2]
[347464363,1735839031502,-174.27662681,9.67e-05,2]
[347464364,1735839031516,-20541.25877319,9.67e-05,2]
[347464365,1735839031526,-5828.3601,9.67e-05,2]
[347464366,1735839031535,-5177.129725,9.67e-05,2]
[347464367,1735839031567,-1007.93998328,9.67e-05,2]
[347464368,1735839031579,-271.00359172,9.67e-05,2]
[347464369,1735839031589,-500.0,9.743e-05,2]
[347464370,1735839031598,-500.0,9.743e-05,2]
[347464371,1735839031607,-3166.04640828,9.743e-05,2]
[347464372,1735839031619,-5039.5219,9.743e-05,2]
[347464373,1735839031650,-1000.09,9.743e-05,2]
[347464374,1735839031779,-614.74399974,9.743e-05,2]
[347464375,1735839031790,-273.37659724,9.743e-05,2]
[347464376,1735839031802,-33727.93718225,9.743e-05,2]
[347464377,1735839031812,-4992.66922498,9.743e-05,2]
[347464378,1735839031845,-5032.21353185,9.743e-05,2]
[347464379,1735839031856,-9625.2,9.769e-05,2]
[347464380,1735839031867,-485.26241416,9.769e-05,2]
[347464381,1735839031876,-219661.7940678,9.77e-05,2]
[347464382,1735839031887,-4380.46723962,9.77e-05,2]
[347464383,1735839031897,-1625.64,9.77e-05,2]
[347464384,1735839031908,-5300.0,9.77e-05,2]
[347464386,1735839031919,-875.98824896,9.77e-05,2]
[347464412,1735839037424,-4926.63449439,9.77e-05,2]
[347464413,1735839037437,-41969.81241381,9.77e-05,2]
[347464414,1735839037448,-655.655,9.77e-05,2]
[347464415,1735839037459,-29991.14223,9.77e-05,2]
[347464432,1735839037940,-359.46753516,9.77e-05,2]
[347464435,1735839037953,-3592.07747779,9.77e-05,2]
[347464439,1735839037968,-80509.25207816,9.77e-05,2]
[347464577,1735839039406,-534.0425677,9.77e-05,2]
[347464579,1735839039418,-430.3439993,9.77e-05,2]
[347464584,1735839039455,-447.7143896,9.77e-05,2]
[347464588,1735839039479,-826.31590867,9.77e-05,2]
[347464590,1735839039490,-304.166235,9.77e-05,2]
[347464592,1735839039502,-4867.919,9.77e-05,2]
[347464596,1735839039529,-58300.65231202,9.77e-05,2]
[347464604,1735839039602,-3674.76568076,9.77e-05,2]
[347464606,1735839039614,-669.0756367,9.77e-05,2]
[347464611,1735839039656,-608.11212382,9.77e-05,2]
[347464614,1735839039667,-24668.79190335,9.77e-05,2]
[347464616,1735839039679,-11175.054306,9.77e-05,2]
[347464618,1735839039691,-4219.424151,9.77e-05,2]
[347464620,1735839039702,-6071.45188,9.77e-05,2]
[347464622,1735839039713,-298.2975,9.77e-05,2]
[347464916,1735839042514,-494.14,9.77e-05,2]
[347464918,1735839042525,-850.0830851,9.77e-05,2]
[347464924,1735839042573,-6433.90948603,9.77e-05,2]
[347464932,1735839042634,-705.0,9.77e-05,2]
[347464944,1735839042720,-33237.02019729,9.77e-05,2]
[347464946,1735839042731,-24407.45537696,9.77e-05,2]
[347464957,1735839042827,-317.25,9.77e-05,2]
[347464959,1735839042839,-1179.56290355,9.77e-05,2]
[347464961,1735839042850,-329.49060594,9.77e-05,2]
[347465230,1735839045459,-256.46539429,9.77e-05,2]
[347465234,1735839045470,-1107.89445285,9.77e-05,2]
[347465238,1735839045482,-3604.73596331,9.77e-05,2]
[347465249,1735839045529,-5351.94440153,9.77e-05,2]
[347465252,1735839045541,-1499.46,9.77e-05,2]
[347465255,1735839045552,-403.24,9.77e-05,2]
[347465267,1735839045635,-2482.50469129,9.77e-05,2]
[347465269,1735839045646,-6050.9999995,9.77e-05,2]
[347465271,1735839045658,-2654.24185893,9.77e-05,2]
[347465273,1735839045669,-1828.433986,9.77e-05,2]
[347465275,1735839045680,-2717.39685988,9.77e-05,2]
[347465277,1735839045691,-31273.91059682,9.77e-05,2]
[347465280,1735839045706,-57022.9465228,9.77e-05,2]
[347465286,1735839045808,-253229.45913905,9.77e-05,2]
[347465287,1735839045819,-1325.2359382,9.77e-05,2]
[347465288,1735839045878,-14227.571461,9.77e-05,2]
[347465289,1735839045889,-2481.57987107,9.77e-05,2]
[347465291,1735839045900,-21947.859396,9.77e-05,2]
[347465488,1735839084516,285.654607,9.6e-05,2]
[347465489,1735839102054,1244.19,9.074e-05,2]
[347465490,1735839146283,23900.0,9.068e-05,2]
[347465491,1735839195245,491.0,9.48e-05,2]
[347465492,1735839298308,200.0,9.009e-05,2]
[347465494,1735839327534,1022.3,8.219e-05,2]
[347465516,1735839428973,250.0,9.054e-05,2]
[347465517,1735839476777,400.59411778,0.0002,120]
[347465521,1735839491630,151.518,9.28e-05,2]
[347465523,1735839631136,250.0,9.008e-05,2]
[347465524,1735839636450,411.62,8.992e-05,2]
[347465525,1735839741729,1000.0,9.003e-05,2]
[347465526,1735839907186,150.0,8.975e-05,2]
[347465527,1735840048017,696.64,9.044e-05,2]
[347465530,1735840118093,151.195,9.28e-05,2]
[347465546,1735840232260,-11136.5624,9.67e-05,2]
[347465547,1735840232269,-4450.4881,9.67e-05,2]
[347465548,1735840232278,-5461.59822542,9.726e-05,2]
[347465549,1735840232287,-14391.94381314,9.726e-05,2]
[347465551,1735840232300,-9736.05618686,9.726e-05,2]
[347465553,1735840232310,-380.824444,9.769e-05,2]
[347465555,1735840232319,-590.68702372,9.769e-05,2]
[347465557,1735840232329,-521.0,9.77e-05,2]
[347465559,1735840232338,-43427.20146634,9.77e-05,2]
[347465561,1735840232349,-24600.00141145,9.77e-05,2]
[347465563,1735840232359,-98534.99909135,9.77e-05,2]
[347465566,1735840232376,-877.68164963,9.77e-05,2]
[347465568,1735840232386,-51072.46225248,9.77e-05,2]
[347465570,1735840232398,-4987.28664,9.77e-05,2]
[347465573,1735840232410,-1787.0,9.77e-05,2]
[347465578,1735840232450,-4837.7,9.77e-05,2]
[347465580,1735840232460,-1428.22687009,9.77e-05,2]
[347465582,1735840232471,-13745.26425368,9.77e-05,2]
[347465586,1735840232495,-881.08675534,9.77e-05,2]
[347465588,1735840232506,-1158.228,9.77e-05,2]
[347465590,1735840232519,-1953.19,9.77e-05,2]
[347465609,1735840232691,-334.78694722,9.77e-05,2]
[347465612,1735840232703,-1784.09420779,9.77e-05,2]
[347465614,1735840232714,-12044.63064763,9.77e-05,2]
[347465618,1735840232743,-1983.01705708,9.77e-05,2]
[347465620,1735840232754,-358.35358244,9.77e-05,2]
[347466101,1735840237590,-6758.88,9.77e-05,2]
[347466103,1735840237601,-9653.8,9.77e-05,2]
[347466105,1735840237612,-1001.2,9.77e-05,2]
[347466112,1735840237666,-4848.5,9.77e-05,2]
[347466114,1735840237677,-8628.54791454,9.77e-05,2]
[347466122,1735840237742,-12088.70039857,9.77e-05,2]
[347466132,1735840237835,-15944.41832623,9.77e-05,2]
[347466135,1735840237846,-6943.4743209,9.77e-05,2]
[347466137,1735840237857,-9549.41611743,9.77e-05,2]
[347466139,1735840237868,-573.2983319,9.77e-05,2]
[347466141,1735840237879,-1109.06029197,9.77e-05,2]
[347466143,1735840237890,-10000.275536,9.77e-05,2]
[347466145,1735840237902,-2849.37000784,9.77e-05,2]
[347466148,1735840237914,-2013.6,9.77e-05,2]
[347466328,1735840239701,-1025.0,9.77e-05,2]
[347466330,1735840239713,-809.50418145,9.77e-05,2]
[347466332,1735840239724,-194088.0,9.77e-05,2]
[347466341,1735840239801,-4496.38296764,9.77e-05,2]
[347466347,1735840239856,-985.07995557,9.77e-05,2]
[347466353,1735840239901,-307.55141,9.77e-05,2]
[347466355,1735840239912,-726.80712097,9.77e-05,2]
[347466363,1735840239972,-679.325,9.77e-05,2]
[347466365,1735840239985,-315.83999997,9.77e-05,2]
[347466367,1735840239996,-671.07000009,9.77e-05,2]
[347466626,1735840242760,-563.0,9.77e-05,2]
[347466628,1735840242770,-76.79331748,9.77e-05,2]
[347466936,1735840245811,-611.84223459,9.77e-05,2]
[347466939,1735840245823,-309.3184,9.77e-05,2]
[347466941,1735840245835,-297.66257928,9.77e-05,2]
[347466953,1735840245942,-27107.86808151,9.77e-05,2]
[347466969,1735840246081,-1942.12400669,9.77e-05,2]
[347468262,1735840299755,155.559,9.28e-05,2]
[347468263,1735840312124,1016.88,8.219e-05,2]
[347468264,1735840333302,250.0,9.137e-05,2]
[347468266,1735840550166,250.0,9.045e-05,2]
[347468267,1735840551536,23900.0,9.045e-05,2]
[347468268,1735840602556,256.4372928,9.595e-05,2]
[347468269,1735840636307,-300.0,9.669e-05,2]
[347468270,1735840636329,-334.78694722,9.67e-05,2]
[347468271,1735840636352,-22109.21305278,9.67e-05,2]
[347468272,1735840636508,1000.0,9.044e-05,2]
[347468273,1735840640807,-41905.11114722,9.67e-05,2]
[347468274,1735840640834,-1000.0,9.67e-05,2]
[347468275,1735840640860,-849.3617,9.67e-05,2]
[347468276,1735840640888,-205.7350641,9.769e-05,2]
[347468277,1735840640914,-511.0,9.77e-05,2]
[347468278,1735840640943,-5528.79208868,9.77e-05,2]
[347468279,1735840641844,-50000.0,9.77e-05,2]
[347468280,1735840642152,-50000.0,9.77e-05,2]
[347468281,1735840642826,-34166.10716798,9.77e-05,2]
[347468282,1735840642854,-15833.89283202,9.77e-05,2]
[347468283,1735840657330,449.72,9.123e-05,2]
[347468284,1735840683986,970.77,9.123e-05,2]
[347468285,1735840704768,3555.51,9.098e-05,2]
[347468286,1735840710715,1118.128,9.575e-05,2]
[347468287,1735840916096,300.0,9.1e-05,3]
[347468288,1735840918222,600.0,9.2e-05,3]
[347468289,1735840920575,900.0,9.3e-05,3]
[347468290,1735840922678,1200.0,9.4e-05,3]
[347468291,1735840924804,1500.0,9.5e-05,3]
[347468292,1735840926929,300.0,9.6e-05,3]
[347468293,1735840932728,1241.66,9.061e-05,2]
[347468294,1735840934721,158.202,9.28e-05,2]
[347468296,1735841111115,150.0,8.975e-05,2]
[347468297,1735841111335,150.0,9.474e-05,2]
[347468298,1735841113951,150.0,8.975e-05,2]
[347468299,1735841120745,150.0,8.975e-05,2]
[347468300,1735841137342,150.0,8.975e-05,2]
[347468302,1735841273226,1158.36345814,9.565e-05,2]
[347468303,1735841335013,987.11,8.219e-05,2]
[347468304,1735841410721,250.0,8.977e-05,2]
[347468312,1735841431831,-300.0,9.669e-05,2]
[347468313,1735841431842,-49.57893753,9.67e-05,2]
[347468314,1735841431892,-995.32518192,9.67e-05,2]
[347468315,1735841431902,-284.43145577,9.67e-05,2]
[347468316,1735841431911,-3052.832,9.67e-05,2]
[347468317,1735841431921,-4792.1598,9.67e-05,2]
[347468318,1735841431930,-67475.0074,9.67e-05,2]
[347468319,1735841431939,-1000.0,9.671e-05,2]
[347468320,1735841431948,-4943.5800236,9.769e-05,2]
[347468321,1735841431958,-584583.68595987,9.77e-05,2]
[347468322,1735841431967,-2452.467938,9.776e-05,2]
[347468323,1735841431977,-33008.2214123,9.79e-05,2]
[347468324,1735841431986,-250.93,9.8e-05,2]
[347468325,1735841431995,-976.98,9.8e-05,2]
[347468326,1735841432004,-3774.0,9.831e-05,2]
[347468327,1735841432013,-1257.667,9.831e-05,2]
[347468328,1735841432023,-536.0,9.831e-05,2]
[347468329,1735841432033,-3721.0,9.831e-05,2]
[347468330,1735841432042,-3892.0,9.86e-05,2]
[347468331,1735841432051,-9611.0,9.86e-05,2]
[347468332,1735841432060,-1170.0,9.86e-05,2]
[347468333,1735841432070,-150.0,9.86e-05,2]
[347468334,1735841432079,-491.0,9.86e-05,2]
[347468335,1735841432088,-200.0,9.886e-05,2]
[347468336,1735841432097,-55555.0,9.89e-05,2]
[347468337,1735841432107,-11697.36185105,9.9e-05,2]
[347468338,1735841432116,-942.91,9.9e-05,2]
[347468339,1735841432126,-250.0,9.902e-05,2]
[347468340,1735841432136,-168.0,9.902e-05,2]
[347468341,1735841432146,-229.0,9.902e-05,2]
[347468342,1735841432155,-150.734,9.902e-05,2]
[347468343,1735841432164,-150.0,9.902e-05,2]
[347468344,1735841432173,-161.883,9.902e-05,2]
[347468345,1735841432182,-1266.0,9.902e-05,2]
[347468346,1735841432191,-151.12,9.902e-05,2]
[347468347,1735841432201,-2013.0,9.902e-05,2]
[347468348,1735841432210,-591.11,9.902e-05,2]
[347468349,1735841432219,-150.419,9.902e-05,2]
[347468350,1735841432228,-634.0,9.902e-05,2]
[347468351,1735841432238,-1900.0,9.902e-05,2]
[347468352,1735841432247,-1038.949,9.902e-05,2]
[347468353,1735841432257,-831.0,9.902e-05,2]
[347468354,1735841432267,-500.0,9.963e-05,2]
[347468355,1735841432277,-500.0,9.963e-05,2]
[347468357,1735841432286,-1200.0,9.97e-05,2]
[347468359,1735841432296,-402.22071495,9.97e-05,2]
[347468361,1735841432306,-71286.02910004,9.971e-05,2]
[347468362,1735841432316,-7703.22512238,9.971e-05,2]
[347468363,1735841432326,-355.42997259,9.971e-05,2]
[347468364,1735841432336,-71286.02910004,9.971e-05,2]
[347468365,1735841432346,-321.74417547,9.973e-05,2]
[347468366,1735841432355,-1032.3454,9.973e-05,2]
[347468368,1735841432365,-150.0,9.973e-05,2]
[347468370,1735841432374,-374.9440425,9.973e-05,2]
[347468372,1735841432384,-7703.22512238,9.974e-05,2]
[347468375,1735841432393,-71286.02910004,9.974e-05,2]
[347468376,1735841432403,-4349.91002095,9.975e-05,2]
[347468378,1735841432412,-321.74417547,9.977e-05,2]
[347468380,1735841432421,-355.42997259,9.978e-05,2]
[347468382,1735841432431,-321.74417547,9.978e-05,2]
[347468384,1735841432440,-374.9440425,9.978e-05,2]
[347468386,1735841432449,-8444.7758876,9.979e-05,2]
[347468388,1735841432458,-321.74417547,9.981e-05,2]
[347468391,1735841432468,-321.74417547,9.982e-05,2]
[347468394,1735841432477,-2076.2071684,9.983e-05,2]
[347468396,1735841432486,-4406.7949684,9.983e-05,2]
[347468399,1735841432495,-321.74417547,9.985e-05,2]
[347468402,1735841432505,-8444.7758876,9.986e-05,2]
[347468404,1735841432515,-355.42997259,9.986e-05,2]
[347468407,1735841432524,-8444.7758876,9.986e-05,2]
[347468410,1735841432534,-7703.22512238,9.988e-05,2]
[347468412,1735841432543,-7703.22512238,9.988e-05,2]
[347468415,1735841432552,-71286.02910004,9.988e-05,2]
[347468417,1735841432562,-4349.91002095,9.988e-05,2]
[347468420,1735841432572,-500.0,9.988e-05,2]
[347468423,1735841432581,-500.0,9.988e-05,2]
[347468425,1735841432590,-500.0,9.988e-05,2]
[347468427,1735841432599,-500.0,9.988e-05,2]
[347468429,1735841432609,-271.09665945,9.988e-05,2]
[347468431,1735841432619,-8444.7758876,9.989e-05,2]
[347468433,1735841432628,-7703.22512238,9.989e-05,2]
[347468435,1735841432638,-104794.53092207,9.989e-05,2]
[347468437,1735841432647,-530.9,9.989e-05,2]
[347468438,1735841432656,-374.9440425,9.989e-05,2]
[347468440,1735841432666,-12640.0,9.989e-05,2]
[347468442,1735841432676,-537.0,9.99e-05,2]
[347468444,1735841432686,-56533.53033302,9.99e-05,2]
[347468447,1735841432699,-701.26254607,9.99e-05,2]
[347468450,1735841432716,-1599.9147287,9.99e-05,2]
[347468467,1735841432885,-0.37816298,9.99e-05,2]
[347468469,1735841432896,-340.39437717,9.99e-05,2]
[347468472,1735841432920,-360.54960814,9.99e-05,2]
[347468474,1735841432931,-4324.17140372,9.99e-05,2]
[347468477,1735841432942,-1390.78846224,9.99e-05,2]
[347468486,1735841433024,-39068.77024278,9.99e-05,2]
[347468610,1735841437838,-1103.0,9.86e-05,2]
[347468611,1735841437849,-30188.13418497,9.99e-05,2]
[347468612,1735841437863,-3861.39,9.99e-05,2]
[347468624,1735841439784,-299.44235422,9.99e-05,2]
[347468625,1735841439814,-9492.23249327,9.99e-05,2]
[347468626,1735841439825,-688.95599999,9.99e-05,2]
[347468627,1735841439851,-1527.85451352,9.99e-05,2]
[347468628,1735841440036,-500.0,9.99e-05,2]
[347468629,1735841440048,-185075.17543161,9.99e-05,2]
[347468630,1735841440062,-289.93687917,9.99e-05,2]
[347468640,1735841443274,-1037.49,9.99e-05,2]
[347468642,1735841445791,-2272.049504,9.99e-05,2]
[347468644,1735841445822,-32968.94821966,9.99e-05,2]
[347468645,1735841445848,-4506.24800003,9.99e-05,2]
[347468646,1735841445859,-1739.5735,9.99e-05,2]
[347468647,1735841445935,-9400.0,9.99e-05,2]
[347468648,1735841445964,-1890.02,9.99e-05,2]
[347468649,1735841446076,-937.90959676,9.99e-05,2]
[347468652,1735841447186,250.0,9.569e-05,2]
[347468653,1735841475239,250.0,9.482e-05,2]
[347468654,1735841488711,161.059,9.49e-05,2]
[347468655,1735841507053,1000.0,9.164e-05,2]
[347468657,1735841620553,168.08,9.406e-05,2]
[347468658,1735841626455,263.33,9.545e-05,2]
[347468660,1735841669605,23900.0,9.132e-05,2]
[347468663,1735841740493,911.97,9.079e-05,2]
[347468664,1735841756259,172.9,9.094e-05,2]
[347468666,1735841787387,278.95,9.545e-05,2]
[347468667,1735841796734,243.2,0.0002,120]
[347468668,1735841860674,1079.34,9.142e-05,2]
[347468671,1735842027366,2034.4,9.57e-05,2]
[347468674,1735842112942,160.98,9.49e-05,2]
[347468675,1735842141686,1972.3457,9.57e-05,2]
[347468676,1735842163143,200.0,9.068e-05,2]
[347468677,1735842204050,983.45,8.219e-05,2]
[347468678,1735842291538,538.7824,9.57e-05,2]
[347468679,1735842303734,150.0,8.975e-05,2]
[347468680,1735842303915,150.0,9.047e-05,2]
[347468681,1735842304147,150.0,9.118e-05,2]
[347468682,1735842304395,150.0,9.189e-05,2]
[347468683,1735842304706,150.0,9.26e-05,2]
[347468684,1735842305089,150.0,9.332e-05,2]
[347468685,1735842305374,150.0,9.403e-05,2]
[347468686,1735842305691,150.0,9.474e-05,2]
[347468687,1735842306044,150.0,9.545e-05,2]
[347468688,1735842310674,150.0,8.975e-05,2]
[347468689,1735842310911,150.0,9.142e-05,2]
[347468690,1735842311256,150.0,9.308e-05,2]
[347468691,1735842311577,150.0,9.474e-05,2]
[347468692,1735842319435,150.0,8.975e-05,2]
[347468693,1735842320344,150.0,9.1e-05,2]
[347468694,1735842320486,150.0,9.225e-05,2]
[347468695,1735842320714,150.0,9.349e-05,2]
[347468696,1735842320849,150.0,9.474e-05,2]
[347468697,1735842321073,150.0,9.599e-05,2]
[347468707,1735842345996,150.0,8.975e-05,2]
[347468708,1735842357040,1000.0,8.943e-05,2]
[347468709,1735842380154,250.0,8.926e-05,2]
[347468710,1735842389865,7420.0,9.596e-05,2]
[347468711,1735842407960,250.0,8.946e-05,2]
[347468713,1735842467522,250.0,8.946e-05,2]
[347468723,1735842548211,23900.0,8.921e-05,2]
[347468738,1735842632051,-150.0,9.616e-05,2]
[347468739,1735842632061,-150.0,9.64e-05,2]
[347468740,1735842632071,-332.63594072,9.642e-05,2]